[Event "*** Biggest EVER Titled Tuesday"]
[Site "Chess.com"]
[Date "2018.04.17"]
[Round "2"]
[White "Zhuu96"]
[Black "rasmussvane"]
[Result "1-0"]
[WhiteElo "2727"]
[BlackElo "2595"]
[TimeControl "180+2"]
[EndTime "13:21:02 PDT"]
[Termination "Zhuu96 won by resignation"]

1. e4 {[%clk 0:02:57.7]} 1... c6 {[%clk 0:02:59.9]} 2. d4 {[%clk 0:02:58.3]}
2... d5 {[%clk 0:03:01.4]} 3. Nc3 {[%clk 0:02:59.2]} 3... dxe4 {[%clk
0:03:02.6]} 4. Nxe4 {[%clk 0:03:00.5]} 4... Nf6 {[%clk 0:03:04.2]} 5. Nxf6+
{[%clk 0:02:58.5]} 5... exf6 {[%clk 0:03:06.1]} 6. c3 {[%clk 0:02:51.8]} 6...
Bd6 {[%clk 0:03:06.5]} 7. Bd3 {[%clk 0:02:52.3]} 7... O-O {[%clk 0:03:08]} 8.
Qc2 {[%clk 0:02:53.6]} 8... Re8+ {[%clk 0:03:09.4]} 9. Ne2 {[%clk 0:02:54.4]}
9... h5 {[%clk 0:03:10.9]} 10. Be3 {[%clk 0:02:53.9]} 10... Nd7 {[%clk
0:03:12.1]} 11. Ng3 {[%clk 0:02:52.3]} 11... Nb6 {[%clk 0:03:12]} 12. O-O-O
{[%clk 0:02:52.2]} 12... Nd5 {[%clk 0:03:12.7]} 13. Rde1 {[%clk 0:02:46.2]}
13... Nf4 {[%clk 0:02:50.3]} 14. Bxf4 {[%clk 0:02:37.8]} 14... Bxf4+ {[%clk
0:02:50.8]} 15. Kb1 {[%clk 0:02:39]} 15... h4 {[%clk 0:02:47.9]} 16. Nh5 {[%clk
0:02:36.4]} 16... Rxe1+ {[%clk 0:02:25.8]} 17. Rxe1 {[%clk 0:02:36]} 17... Bd6
{[%clk 0:02:20.2]} 18. h3 {[%clk 0:02:35.8]} 18... Bd7 {[%clk 0:02:14.5]} 19.
Bc4 {[%clk 0:02:27.3]} 19... f5 {[%clk 0:02:08.1]} 20. Qb3 {[%clk 0:02:24.9]}
20... Be8 {[%clk 0:01:59.6]} 21. Qxb7 {[%clk 0:02:22.9]} 21... Rb8 {[%clk
0:01:55.2]} 22. Qxa7 {[%clk 0:02:23.9]} 22... Ra8 {[%clk 0:01:46.5]} 23. Rxe8+
{[%clk 0:01:57.9]} 23... Qxe8 {[%clk 0:01:46.3]} 24. Bxf7+ {[%clk 0:01:59.5]}
24... Kf8 {[%clk 0:01:43.2]} 25. Bxe8 {[%clk 0:01:54.8]} 25... Rxa7 {[%clk
0:01:44]} 26. Bxc6 {[%clk 0:01:55.7]} 26... Re7 {[%clk 0:01:34.9]} 27. b4 {[%clk
0:01:36.6]} 27... Re2 {[%clk 0:01:19.9]} 28. a4 {[%clk 0:01:36.3]} 28... Kf7
{[%clk 0:01:19.3]} 29. a5 {[%clk 0:01:27.9]} 29... Bc7 {[%clk 0:00:59.4]} 30. a6
{[%clk 0:01:16.1]} 30... Bb6 {[%clk 0:00:58.4]} 31. Nf4 {[%clk 0:01:16.9]} 31...
Rxf2 {[%clk 0:00:59.2]} 32. Nd5 {[%clk 0:01:11.7]} 32... Ba7 {[%clk 0:01:00.3]}
33. b5 {[%clk 0:01:13]} 33... Rxg2 {[%clk 0:00:28.9]} 34. b6 {[%clk 0:01:13.6]}
1-0

[Event "*** Biggest EVER Titled Tuesday"]
[Site "Chess.com"]
[Date "2018.04.17"]
[Round "2"]
[White "Superfelix"]
[Black "DanielNaroditsky"]
[Result "0-1"]
[WhiteElo "2345"]
[BlackElo "2827"]
[TimeControl "180+2"]
[EndTime "13:21:02 PDT"]
[Termination "DanielNaroditsky won by resignation"]

1. e4 {[%clk 0:03:01.9]} 1... e5 {[%clk 0:03:01.3]} 2. Nf3 {[%clk 0:03:00.9]}
2... Nc6 {[%clk 0:03:02.9]} 3. d4 {[%clk 0:03:02.2]} 3... exd4 {[%clk 0:03:04]}
4. Nxd4 {[%clk 0:03:04.1]} 4... Bc5 {[%clk 0:03:05.3]} 5. Nf5 {[%clk 0:03:01.7]}
5... g6 {[%clk 0:03:06.5]} 6. Ne3 {[%clk 0:03:02.3]} 6... Nf6 {[%clk 0:03:07.7]}
7. Nc3 {[%clk 0:03:03.6]} 7... O-O {[%clk 0:03:09.2]} 8. Bd3 {[%clk 0:03:04.9]}
8... d6 {[%clk 0:03:09.9]} 9. O-O {[%clk 0:03:06]} 9... Ne5 {[%clk 0:03:11.4]}
10. Be2 {[%clk 0:03:03.7]} 10... Re8 {[%clk 0:03:11.4]} 11. Kh1 {[%clk
0:03:04.7]} 11... h5 {[%clk 0:03:11.6]} 12. h3 {[%clk 0:03:04.6]} 12... Nc6
{[%clk 0:03:07.1]} 13. Bd3 {[%clk 0:03:03.9]} 13... h4 {[%clk 0:03:01.2]} 14.
Ned5 {[%clk 0:03:02.7]} 14... Nh5 {[%clk 0:02:58.2]} 15. Be2 {[%clk 0:02:59.9]}
15... Ng7 {[%clk 0:02:55]} 16. Be3 {[%clk 0:02:56.4]} 16... Bxe3 {[%clk
0:02:55.3]} 17. fxe3 {[%clk 0:02:58.3]} 17... Re5 {[%clk 0:02:53.4]} 18. Nf6+
{[%clk 0:02:56.4]} 18... Kh8 {[%clk 0:02:54.8]} 19. Qe1 {[%clk 0:02:50.7]} 19...
g5 {[%clk 0:02:53.9]} 20. Bd3 {[%clk 0:02:47.1]} 20... Be6 {[%clk 0:02:51]} 21.
Qf2 {[%clk 0:02:46.9]} 21... Ne7 {[%clk 0:02:49.8]} 22. Ncd5 {[%clk 0:02:46.4]}
22... Ng6 {[%clk 0:02:48.3]} 23. Qf3 {[%clk 0:02:39.1]} 23... c6 {[%clk
0:02:47.8]} 24. Nc3 {[%clk 0:02:39.3]} 24... b5 {[%clk 0:02:39.2]} 25. a3 {[%clk
0:02:38.9]} 25... Qe7 {[%clk 0:02:33.2]} 26. Ne2 {[%clk 0:02:29.9]} 26... c5
{[%clk 0:02:29.5]} 27. Bxb5 {[%clk 0:02:29.6]} 27... Rb8 {[%clk 0:02:30.8]} 28.
c4 {[%clk 0:02:26.6]} 28... Qb7 {[%clk 0:02:19.8]} 29. Nc3 {[%clk 0:02:16.4]}
29... a6 {[%clk 0:02:19.7]} 30. Ba4 {[%clk 0:02:17.6]} 30... Bxc4 {[%clk
0:02:19.9]} 31. Rf2 {[%clk 0:02:14.4]} 31... Be6 {[%clk 0:02:15.5]} 32. Rd1
{[%clk 0:02:14.4]} 32... Qe7 {[%clk 0:02:15.8]} 33. Ncd5 {[%clk 0:02:13.8]}
33... Qd8 {[%clk 0:02:15.7]} 34. b4 {[%clk 0:02:13.6]} 34... c4 {[%clk
0:02:16.5]} 35. Rc1 {[%clk 0:02:10]} 35... Rc8 {[%clk 0:02:18]} 36. Rc3 {[%clk
0:02:09.6]} 36... Bxd5 {[%clk 0:02:18.2]} 37. exd5 {[%clk 0:02:04.9]} 37... Rf5
{[%clk 0:02:18.6]} 38. Qxf5 {[%clk 0:02:00]} 38... Nxf5 {[%clk 0:02:20.5]} 39.
Rxf5 {[%clk 0:02:01.2]} 39... Qe7 {[%clk 0:02:22.3]} 40. Ng4 {[%clk 0:01:53.7]}
40... Qe4 {[%clk 0:02:20.3]} 41. Rxf7 {[%clk 0:01:51.8]} 41... Ne5 {[%clk
0:02:10.9]} 42. Re7 {[%clk 0:01:35.4]} 42... Qb1+ {[%clk 0:02:09.6]} 43. Kh2
{[%clk 0:01:36.5]} 43... Nxg4+ {[%clk 0:02:09.4]} 44. hxg4 {[%clk 0:01:38.4]}
44... Qe1 {[%clk 0:02:08.5]} 45. Rc2 {[%clk 0:01:36.4]} 45... Qg3+ {[%clk
0:02:09.4]} 46. Kh1 {[%clk 0:01:37.3]} 46... Qe1+ {[%clk 0:02:09]} 47. Kh2
{[%clk 0:01:38.1]} 47... c3 {[%clk 0:02:09.4]} 48. Rf7 {[%clk 0:01:26.7]} 48...
Qg3+ {[%clk 0:02:10.4]} 49. Kh1 {[%clk 0:01:26.5]} 49... Qxg4 {[%clk 0:02:12.1]}
50. Rcf2 {[%clk 0:01:24.7]} 50... c2 {[%clk 0:02:11.7]} 51. Bxc2 {[%clk
0:01:17.9]} 51... h3 {[%clk 0:01:54.9]} 52. Bf5 {[%clk 0:01:05.1]} 52... hxg2+
{[%clk 0:01:50.3]} 53. Rxg2 {[%clk 0:00:57.5]} 53... Rc1+ {[%clk 0:01:50.3]} 54.
Kh2 {[%clk 0:00:58.6]} 54... Qh5+ {[%clk 0:01:51.3]} 55. Bh3 {[%clk 0:00:59.1]}
55... Qxf7 {[%clk 0:01:52.6]} 0-1

[Event "*** Biggest EVER Titled Tuesday"]
[Site "Chess.com"]
[Date "2018.04.17"]
[Round "2"]
[White "kirillshevchenko"]
[Black "jlandaw"]
[Result "1-0"]
[WhiteElo "2300"]
[BlackElo "2400"]
[TimeControl "180+2"]
[EndTime "13:21:03 PDT"]
[Termination "kirillshevchenko won by resignation"]

1. d4 {[%clk 0:03:01.9]} 1... d5 {[%clk 0:03:00.2]} 2. c4 {[%clk 0:03:02.2]}
2... c6 {[%clk 0:03:01.5]} 3. Nf3 {[%clk 0:03:01.6]} 3... e6 {[%clk 0:03:02.7]}
4. e3 {[%clk 0:03:02]} 4... f5 {[%clk 0:03:03.5]} 5. b3 {[%clk 0:02:59.9]} 5...
Bb4+ {[%clk 0:03:01.5]} 6. Nbd2 {[%clk 0:02:32]} 6... Nf6 {[%clk 0:02:59.1]} 7.
Bd3 {[%clk 0:02:23.5]} 7... O-O {[%clk 0:02:56.3]} 8. O-O {[%clk 0:02:24.5]}
8... Nbd7 {[%clk 0:02:49]} 9. Bb2 {[%clk 0:02:07]} 9... Ne4 {[%clk 0:02:42.7]}
10. Qc2 {[%clk 0:01:35.2]} 10... Rf6 {[%clk 0:02:24.3]} 11. Rfc1 {[%clk
0:01:04.6]} 11... Rh6 {[%clk 0:02:19.2]} 12. Nf1 {[%clk 0:00:58.7]} 12... Bd6
{[%clk 0:01:57.8]} 13. Ne5 {[%clk 0:00:51.8]} 13... Nxe5 {[%clk 0:01:18.2]} 14.
dxe5 {[%clk 0:00:53.4]} 14... Bf8 {[%clk 0:01:19.3]} 15. cxd5 {[%clk 0:00:40.9]}
15... exd5 {[%clk 0:01:15.5]} 16. f3 {[%clk 0:00:41.4]} 16... Ng5 {[%clk
0:00:20.8]} 17. Bxf5 {[%clk 0:00:35.1]} 17... Nxf3+ {[%clk 0:00:21.9]} 18. gxf3
{[%clk 0:00:29.2]} 18... Qg5+ {[%clk 0:00:23.1]} 19. Ng3 {[%clk 0:00:26.5]}
19... Qxe3+ {[%clk 0:00:23.9]} 20. Kg2 {[%clk 0:00:23.9]} 20... Bxf5 {[%clk
0:00:17.4]} 21. Nxf5 {[%clk 0:00:22.3]} 21... Rg6+ {[%clk 0:00:17]} 22. Ng3
{[%clk 0:00:23.5]} 22... Bc5 {[%clk 0:00:16.8]} 23. Qxc5 {[%clk 0:00:21.8]}
23... Rf8 {[%clk 0:00:17.7]} 24. Qxe3 {[%clk 0:00:22.7]} 1-0

[Event "*** Biggest EVER Titled Tuesday"]
[Site "Chess.com"]
[Date "2018.04.17"]
[Round "2"]
[White "Abdodi"]
[Black "KRASAVCHIK2002"]
[Result "0-1"]
[WhiteElo "2040"]
[BlackElo "1994"]
[TimeControl "180+2"]
[EndTime "13:21:07 PDT"]
[Termination "KRASAVCHIK2002 won by resignation"]

1. e4 {[%clk 0:03:01.9]} 1... c5 {[%clk 0:02:50.4]} 2. Nf3 {[%clk 0:03:02]} 2...
d6 {[%clk 0:02:51.7]} 3. d3 {[%clk 0:03:01.9]} 3... g6 {[%clk 0:02:50.6]} 4. g3
{[%clk 0:03:01.1]} 4... Bg7 {[%clk 0:02:51.4]} 5. Bg2 {[%clk 0:03:02.1]} 5...
Nc6 {[%clk 0:02:52.3]} 6. c3 {[%clk 0:03:03.2]} 6... e6 {[%clk 0:02:52.8]} 7.
O-O {[%clk 0:03:04.3]} 7... Nge7 {[%clk 0:02:53.7]} 8. Re1 {[%clk 0:03:04.9]}
8... Rb8 {[%clk 0:02:54.6]} 9. a4 {[%clk 0:03:05.4]} 9... O-O {[%clk 0:02:52.8]}
10. Na3 {[%clk 0:03:05.6]} 10... a6 {[%clk 0:02:52.7]} 11. Nc4 {[%clk
0:02:55.9]} 11... b5 {[%clk 0:02:52.2]} 12. axb5 {[%clk 0:02:56.5]} 12... axb5
{[%clk 0:02:53.5]} 13. Ne3 {[%clk 0:02:57.9]} 13... d5 {[%clk 0:02:47.8]} 14.
Nc2 {[%clk 0:02:54.7]} 14... b4 {[%clk 0:02:45.7]} 15. e5 {[%clk 0:02:45.7]}
15... Bd7 {[%clk 0:02:37.7]} 16. h4 {[%clk 0:02:43.7]} 16... Qb6 {[%clk
0:02:26.4]} 17. Bf4 {[%clk 0:02:41.2]} 17... bxc3 {[%clk 0:02:02.5]} 18. bxc3
{[%clk 0:02:40.8]} 18... Nf5 {[%clk 0:02:01.3]} 19. Ng5 {[%clk 0:02:36.8]} 19...
Rfd8 {[%clk 0:01:55.1]} 20. h5 {[%clk 0:02:36.5]} 20... h6 {[%clk 0:01:54.6]}
21. hxg6 {[%clk 0:02:20.7]} 21... hxg5 {[%clk 0:01:51.2]} 22. gxf7+ {[%clk
0:02:21.7]} 22... Kxf7 {[%clk 0:01:51]} 23. Qh5+ {[%clk 0:02:21.5]} 23... Kg8
{[%clk 0:01:50.2]} 24. Bxg5 {[%clk 0:02:22.7]} 24... Qb2 {[%clk 0:01:46.8]} 25.
Bxd8 {[%clk 0:02:19]} 25... Rxd8 {[%clk 0:01:44.9]} 26. Rec1 {[%clk 0:01:51.4]}
26... Qxc3 {[%clk 0:01:29.9]} 27. Qf3 {[%clk 0:01:00.4]} 27... Nxe5 {[%clk
0:01:25.8]} 28. Qh5 {[%clk 0:00:57.4]} 28... Nxd3 {[%clk 0:01:23.3]} 29. Qg5
{[%clk 0:00:51.2]} 29... Qf6 {[%clk 0:01:18.9]} 30. Qxf6 {[%clk 0:00:50.5]}
30... Bxf6 {[%clk 0:01:20.4]} 31. Rd1 {[%clk 0:00:44.6]} 31... Bxa1 {[%clk
0:01:20.1]} 32. Rxd3 {[%clk 0:00:45.2]} 32... Bf6 {[%clk 0:01:20.8]} 33. g4
{[%clk 0:00:39.4]} 33... Nd4 {[%clk 0:01:21.9]} 34. Ne3 {[%clk 0:00:37]} 34...
Bb5 {[%clk 0:01:21.7]} 35. Rd1 {[%clk 0:00:36.9]} 35... Ne2+ {[%clk 0:01:21.1]}
36. Kh1 {[%clk 0:00:35]} 36... Kg7 {[%clk 0:01:21.4]} 37. Bf3 {[%clk 0:00:34.8]}
37... Rh8+ {[%clk 0:01:21.7]} 38. Kg2 {[%clk 0:00:35.3]} 38... Nf4+ {[%clk
0:01:23.1]} 39. Kg3 {[%clk 0:00:33.3]} 39... Be5 {[%clk 0:01:21.6]} 0-1

[Event "*** Biggest EVER Titled Tuesday"]
[Site "Chess.com"]
[Date "2018.04.17"]
[Round "2"]
[White "Sebastian"]
[Black "johnathan113"]
[Result "1-0"]
[WhiteElo "2795"]
[BlackElo "2534"]
[TimeControl "180+2"]
[EndTime "13:21:15 PDT"]
[Termination "Sebastian won by resignation"]

1. d4 {[%clk 0:03:01.9]} 1... Nf6 {[%clk 0:02:58.8]} 2. Nf3 {[%clk 0:03:02.3]}
2... g6 {[%clk 0:02:55.8]} 3. e3 {[%clk 0:03:03.1]} 3... Bg7 {[%clk 0:02:57.7]}
4. Be2 {[%clk 0:03:04.1]} 4... O-O {[%clk 0:02:59.6]} 5. O-O {[%clk 0:03:05.1]}
5... d6 {[%clk 0:03:01.2]} 6. c4 {[%clk 0:03:05.9]} 6... Nbd7 {[%clk 0:03:02.1]}
7. Nc3 {[%clk 0:03:07.1]} 7... e5 {[%clk 0:03:00]} 8. Qc2 {[%clk 0:03:08.6]}
8... Re8 {[%clk 0:03:00.2]} 9. Rd1 {[%clk 0:03:10.1]} 9... e4 {[%clk 0:03:00.8]}
10. Nd2 {[%clk 0:03:11.7]} 10... Qe7 {[%clk 0:03:02.4]} 11. b4 {[%clk
0:03:13.3]} 11... Nf8 {[%clk 0:03:02.9]} 12. Bb2 {[%clk 0:03:14.8]} 12... h5
{[%clk 0:03:02.2]} 13. Rac1 {[%clk 0:03:15.6]} 13... h4 {[%clk 0:03:02.7]} 14.
Nd5 {[%clk 0:03:16]} 14... Nxd5 {[%clk 0:02:42]} 15. cxd5 {[%clk 0:03:16.5]}
15... Qg5 {[%clk 0:02:42.5]} 16. Nxe4 {[%clk 0:02:15.6]} 16... Qxd5 {[%clk
0:02:42.6]} 17. Bf3 {[%clk 0:02:15]} 17... Qf5 {[%clk 0:02:13.9]} 18. h3 {[%clk
0:02:14.4]} 18... d5 {[%clk 0:02:01.9]} 19. Nc3 {[%clk 0:02:08.6]} 19... c6
{[%clk 0:01:58.8]} 20. Qxf5 {[%clk 0:02:01.1]} 20... Bxf5 {[%clk 0:02:00.7]} 21.
b5 {[%clk 0:02:02.6]} 21... Ne6 {[%clk 0:01:47.4]} 22. Ba3 {[%clk 0:01:52]}
22... Ng5 {[%clk 0:01:41]} 23. Be2 {[%clk 0:01:52.9]} 23... Rac8 {[%clk
0:01:32.8]} 24. bxc6 {[%clk 0:01:51]} 24... bxc6 {[%clk 0:01:34.7]} 25. Ba6
{[%clk 0:01:40.8]} 25... Rb8 {[%clk 0:01:35.3]} 26. Na4 {[%clk 0:01:42.4]} 26...
Bd7 {[%clk 0:01:29.1]} 27. Bd6 {[%clk 0:01:32.2]} 27... Ne4 {[%clk 0:00:17.2]}
28. Bxb8 {[%clk 0:01:32]} 28... Rxb8 {[%clk 0:00:18]} 29. Rb1 {[%clk 0:01:17.1]}
29... Rd8 {[%clk 0:00:18.1]} 30. Bd3 {[%clk 0:01:17.1]} 30... Nd6 {[%clk
0:00:13]} 31. Nc5 {[%clk 0:01:16.1]} 31... Be8 {[%clk 0:00:11.8]} 32. Nb7 {[%clk
0:01:11.7]} 1-0

[Event "*** Biggest EVER Titled Tuesday"]
[Site "Chess.com"]
[Date "2018.04.17"]
[Round "2"]
[White "TheLancer"]
[Black "goldenspine"]
[Result "0-1"]
[WhiteElo "2405"]
[BlackElo "2294"]
[TimeControl "180+2"]
[EndTime "13:21:19 PDT"]
[Termination "goldenspine won by resignation"]

1. e4 {[%clk 0:03:01.9]} 1... e6 {[%clk 0:02:59.5]} 2. d4 {[%clk 0:03:01.8]}
2... d5 {[%clk 0:02:58.4]} 3. Nc3 {[%clk 0:03:03.7]} 3... Bb4 {[%clk 0:02:58.9]}
4. e5 {[%clk 0:03:04.8]} 4... Ne7 {[%clk 0:02:58.8]} 5. a3 {[%clk 0:03:06.1]}
5... Bxc3+ {[%clk 0:02:58.7]} 6. bxc3 {[%clk 0:03:08]} 6... c5 {[%clk
0:03:00.3]} 7. Nf3 {[%clk 0:03:07.8]} 7... Qa5 {[%clk 0:02:58.4]} 8. Bd2 {[%clk
0:03:08.2]} 8... Qa4 {[%clk 0:02:59.2]} 9. Qb1 {[%clk 0:03:07.2]} 9... a6 {[%clk
0:02:52.9]} 10. h4 {[%clk 0:03:06.8]} 10... Nbc6 {[%clk 0:02:51.8]} 11. Qb2
{[%clk 0:02:49.7]} 11... Bd7 {[%clk 0:02:41.8]} 12. h5 {[%clk 0:02:50.3]} 12...
h6 {[%clk 0:02:40.2]} 13. Rh4 {[%clk 0:02:51.3]} 13... Nf5 {[%clk 0:02:36.5]}
14. Rf4 {[%clk 0:02:52.1]} 14... Rc8 {[%clk 0:01:57.7]} 15. Bd3 {[%clk 0:02:47]}
15... cxd4 {[%clk 0:01:45.6]} 16. cxd4 {[%clk 0:02:44.9]} 16... Na5 {[%clk
0:01:46.2]} 17. Bb4 {[%clk 0:01:47.3]} 17... Bb5 {[%clk 0:01:28.5]} 18. Bxf5
{[%clk 0:01:02.9]} 18... exf5 {[%clk 0:01:28.9]} 19. Rc1 {[%clk 0:00:55.5]}
19... Nc6 {[%clk 0:00:34.1]} 20. Bd6 {[%clk 0:00:45.3]} 20... Qc4 {[%clk
0:00:34.4]} 21. Ng1 {[%clk 0:00:22.8]} 21... Na5 {[%clk 0:00:27]} 22. c3 {[%clk
0:00:08]} 22... Qf1+ {[%clk 0:00:26.8]} 23. Kd2 {[%clk 0:00:08.7]} 23... Nc4+
{[%clk 0:00:27.7]} 24. Kc2 {[%clk 0:00:08.3]} 24... Ba4+ {[%clk 0:00:26]} 25.
Kb1 {[%clk 0:00:08.6]} 25... Qd3+ {[%clk 0:00:27.6]} 0-1

[Event "*** Biggest EVER Titled Tuesday"]
[Site "Chess.com"]
[Date "2018.04.17"]
[Round "2"]
[White "Andreikka"]
[Black "Gergo85"]
[Result "1-0"]
[WhiteElo "2806"]
[BlackElo "2547"]
[TimeControl "180+2"]
[EndTime "13:21:20 PDT"]
[Termination "Andreikka won by resignation"]

1. d4 {[%clk 0:03:00.5]} 1... f5 {[%clk 0:03:00.3]} 2. g3 {[%clk 0:03:01.2]}
2... Nf6 {[%clk 0:03:01.1]} 3. Bg2 {[%clk 0:03:02.8]} 3... e6 {[%clk 0:03:02.5]}
4. c4 {[%clk 0:02:56.6]} 4... d5 {[%clk 0:03:02.7]} 5. Nd2 {[%clk 0:02:55.8]}
5... Bd6 {[%clk 0:02:58.9]} 6. Nh3 {[%clk 0:02:55.7]} 6... O-O {[%clk
0:02:59.1]} 7. O-O {[%clk 0:02:56.5]} 7... b6 {[%clk 0:02:52.4]} 8. Nf4 {[%clk
0:02:54]} 8... Bxf4 {[%clk 0:02:49.8]} 9. gxf4 {[%clk 0:02:54.9]} 9... Bb7
{[%clk 0:02:51.4]} 10. b3 {[%clk 0:02:54]} 10... Nbd7 {[%clk 0:02:51.4]} 11. Ba3
{[%clk 0:02:51.9]} 11... c5 {[%clk 0:02:43.9]} 12. Rc1 {[%clk 0:02:49]} 12...
Rc8 {[%clk 0:02:39.5]} 13. dxc5 {[%clk 0:02:42.7]} 13... Nxc5 {[%clk 0:02:39.6]}
14. cxd5 {[%clk 0:02:32.7]} 14... Bxd5 {[%clk 0:02:35]} 15. Bxc5 {[%clk
0:02:26.6]} 15... bxc5 {[%clk 0:02:15.9]} 16. Nc4 {[%clk 0:02:18.5]} 16... Bxg2
{[%clk 0:01:52]} 17. Qxd8 {[%clk 0:02:07.4]} 17... Rfxd8 {[%clk 0:01:53.9]} 18.
Kxg2 {[%clk 0:02:08.9]} 18... Nd5 {[%clk 0:01:34.2]} 19. Kf3 {[%clk 0:02:09.6]}
19... Nb6 {[%clk 0:01:34.6]} 20. Rc2 {[%clk 0:01:50]} 20... Nxc4 {[%clk
0:01:00.7]} 21. Rxc4 {[%clk 0:01:50.6]} 21... Rd2 {[%clk 0:01:00.8]} 22. Ra4
{[%clk 0:01:51.2]} 22... h6 {[%clk 0:00:29.7]} 23. Rxa7 {[%clk 0:01:43]} 23...
c4 {[%clk 0:00:30.1]} 24. Rg1 {[%clk 0:01:18.3]} 24... g5 {[%clk 0:00:15.3]} 25.
fxg5 {[%clk 0:01:18.4]} 25... h5 {[%clk 0:00:16.7]} 26. bxc4 {[%clk 0:01:11.1]}
26... Rxc4 {[%clk 0:00:17]} 27. Rb1 {[%clk 0:01:12.3]} 27... Rc3+ {[%clk
0:00:12.1]} 28. e3 {[%clk 0:01:10.3]} 28... Rc8 {[%clk 0:00:12.3]} 29. Rbb7
{[%clk 0:01:07.9]} 29... e5 {[%clk 0:00:12.6]} 30. Rg7+ {[%clk 0:00:57.1]} 30...
Kh8 {[%clk 0:00:13.5]} 31. Rgf7 {[%clk 0:00:52.4]} 31... Kg8 {[%clk 0:00:14.1]}
32. Rxf5 {[%clk 0:00:50]} 1-0

[Event "*** Biggest EVER Titled Tuesday"]
[Site "Chess.com"]
[Date "2018.04.17"]
[Round "2"]
[White "SantoBlue"]
[Black "rekosheten"]
[Result "0-1"]
[WhiteElo "2647"]
[BlackElo "2402"]
[TimeControl "180+2"]
[EndTime "13:21:21 PDT"]
[Termination "rekosheten won on time"]

1. e4 {[%clk 0:03:01.9]} 1... Nf6 {[%clk 0:03:01.2]} 2. e5 {[%clk 0:03:01.4]}
2... Nd5 {[%clk 0:03:02.6]} 3. d4 {[%clk 0:03:00.5]} 3... d6 {[%clk 0:03:03.9]}
4. Nf3 {[%clk 0:03:00.9]} 4... Nc6 {[%clk 0:02:58.2]} 5. h3 {[%clk 0:02:58.5]}
5... dxe5 {[%clk 0:02:49.5]} 6. dxe5 {[%clk 0:02:51.1]} 6... Bf5 {[%clk
0:02:49.9]} 7. Bb5 {[%clk 0:02:36.2]} 7... Nb4 {[%clk 0:02:49.6]} 8. Bxc6+
{[%clk 0:02:17]} 8... bxc6 {[%clk 0:02:40.1]} 9. Na3 {[%clk 0:01:58.7]} 9...
Qxd1+ {[%clk 0:02:34.6]} 10. Kxd1 {[%clk 0:01:59.3]} 10... O-O-O+ {[%clk
0:02:15.6]} 11. Bd2 {[%clk 0:01:58.7]} 11... h6 {[%clk 0:02:02.7]} 12. Kc1
{[%clk 0:01:55.5]} 12... e6 {[%clk 0:02:03.6]} 13. Re1 {[%clk 0:01:42.2]} 13...
Bc5 {[%clk 0:01:51]} 14. Re2 {[%clk 0:01:37.5]} 14... Rd7 {[%clk 0:01:37.7]} 15.
Bxb4 {[%clk 0:00:53.7]} 15... Bxb4 {[%clk 0:01:38.1]} 16. Nc4 {[%clk 0:00:43.4]}
16... Rhd8 {[%clk 0:01:35.9]} 17. Ne3 {[%clk 0:00:42.8]} 17... Be4 {[%clk
0:01:27.1]} 18. a3 {[%clk 0:00:19.3]} 18... Bxf3 {[%clk 0:00:58]} 19. gxf3
{[%clk 0:00:18.8]} 19... Bd2+ {[%clk 0:00:59.9]} 20. Kb1 {[%clk 0:00:18.2]}
20... Bxe3 {[%clk 0:01:01.7]} 21. fxe3 {[%clk 0:00:18.5]} 21... Rd2 {[%clk
0:00:55.6]} 22. Re1 {[%clk 0:00:19.1]} 22... Rh2 {[%clk 0:00:46.4]} 23. Ka2
{[%clk 0:00:10.6]} 23... Rdd2 {[%clk 0:00:39.3]} 24. Rac1 {[%clk 0:00:05.3]}
24... Rxh3 {[%clk 0:00:38.3]} 25. f4 {[%clk 0:00:03.1]} 25... Rhh2 {[%clk
0:00:34.4]} 0-1

[Event "*** Biggest EVER Titled Tuesday"]
[Site "Chess.com"]
[Date "2018.04.17"]
[Round "2"]
[White "nailbeshirli"]
[Black "SelfishShellfish"]
[Result "1-0"]
[WhiteElo "2272"]
[BlackElo "2187"]
[TimeControl "180+2"]
[EndTime "13:21:23 PDT"]
[Termination "nailbeshirli won by resignation"]

1. e4 {[%clk 0:03:00]} 1... Nc6 {[%clk 0:03:00.9]} 2. Nf3 {[%clk 0:03:00.3]}
2... d6 {[%clk 0:03:02.4]} 3. Nc3 {[%clk 0:03:00.9]} 3... Nf6 {[%clk 0:03:03.7]}
4. d4 {[%clk 0:03:01.7]} 4... g6 {[%clk 0:03:05.1]} 5. Be2 {[%clk 0:03:01.3]}
5... Bg7 {[%clk 0:03:06.3]} 6. h3 {[%clk 0:03:03.2]} 6... O-O {[%clk 0:03:07.3]}
7. O-O {[%clk 0:03:04.8]} 7... e5 {[%clk 0:03:08.1]} 8. Be3 {[%clk 0:03:05]}
8... a6 {[%clk 0:03:06.3]} 9. a4 {[%clk 0:03:05.1]} 9... Be6 {[%clk 0:02:43.7]}
10. d5 {[%clk 0:03:02.8]} 10... Bd7 {[%clk 0:02:43.4]} 11. dxc6 {[%clk 0:03:02]}
11... Bxc6 {[%clk 0:02:45.3]} 12. Bg5 {[%clk 0:03:02.6]} 12... h6 {[%clk
0:02:46.1]} 13. Bxf6 {[%clk 0:03:03.3]} 13... Bxf6 {[%clk 0:02:48]} 14. Nd5
{[%clk 0:03:04.3]} 14... Bg7 {[%clk 0:02:49.3]} 15. Qd2 {[%clk 0:03:04.3]} 15...
f5 {[%clk 0:02:50.2]} 16. Bd3 {[%clk 0:02:59.5]} 16... Bxd5 {[%clk 0:02:46.6]}
17. exd5 {[%clk 0:02:59.3]} 17... e4 {[%clk 0:02:48.5]} 18. Ne1 {[%clk
0:02:54.6]} 18... exd3 {[%clk 0:02:49.1]} 19. Nxd3 {[%clk 0:02:56.5]} 19... Qf6
{[%clk 0:02:45.5]} 20. Rae1 {[%clk 0:02:56]} 20... Rae8 {[%clk 0:02:46]} 21. c3
{[%clk 0:02:56.9]} 21... g5 {[%clk 0:02:38.3]} 22. Rxe8 {[%clk 0:02:56.7]} 22...
Rxe8 {[%clk 0:02:39.2]} 23. Re1 {[%clk 0:02:58.6]} 23... Re4 {[%clk 0:02:29.1]}
24. f3 {[%clk 0:02:53.8]} 24... Re7 {[%clk 0:02:22.9]} 25. Rxe7 {[%clk
0:02:41.8]} 25... Qxe7 {[%clk 0:02:23.6]} 26. Kf1 {[%clk 0:02:43.5]} 26... Bf6
{[%clk 0:02:17.7]} 27. Qe2 {[%clk 0:02:42.7]} 27... Qf7 {[%clk 0:02:18.7]} 28.
c4 {[%clk 0:02:32.1]} 28... Kg7 {[%clk 0:02:14.5]} 29. g4 {[%clk 0:02:28.9]}
29... Qd7 {[%clk 0:02:12.1]} 30. b3 {[%clk 0:02:28.3]} 30... h5 {[%clk
0:01:41.9]} 31. gxh5 {[%clk 0:02:27.2]} 31... f4 {[%clk 0:01:27.8]} 32. Kg2
{[%clk 0:02:24]} 32... Qf7 {[%clk 0:01:25.4]} 33. Qe6 {[%clk 0:02:12.5]} 33...
Qxh5 {[%clk 0:01:15.5]} 34. Nf2 {[%clk 0:02:12.2]} 34... Qf7 {[%clk 0:01:09.8]}
35. Qf5 {[%clk 0:02:09.6]} 35... Qg6 {[%clk 0:00:56.4]} 36. Qd7+ {[%clk
0:01:58.4]} 36... Qf7 {[%clk 0:00:56.7]} 37. Qc8 {[%clk 0:01:59.7]} 37... Bd4
{[%clk 0:00:43.8]} 38. Ne4 {[%clk 0:01:59]} 38... Bb6 {[%clk 0:00:24.5]} 39. Qg4
{[%clk 0:01:51.7]} 39... Kf8 {[%clk 0:00:12.8]} 40. Nxg5 {[%clk 0:01:50]} 40...
Qe7 {[%clk 0:00:10.7]} 41. Ne6+ {[%clk 0:01:49.7]} 41... Ke8 {[%clk 0:00:11.9]}
42. Qg8+ {[%clk 0:01:42.6]} 42... Kd7 {[%clk 0:00:12.1]} 43. Nf8+ {[%clk
0:01:43.2]} 43... Ke8 {[%clk 0:00:11.1]} 44. Ng6+ {[%clk 0:01:43.6]} 1-0